{"text_format":"3","workbook":"xlsx","n_sheets":3,"sheets":["Πληροφορίες υπαλλήλου","Υπολογισμός μισθοδοσίας","Ατομικές αποδείξεις μισθοδοσίας"],"not_rendered":{"defined_names":3},"read":"whole","date_system":"1900"}

{"sheet":"Πληροφορίες υπαλλήλου","index":0,"n_rows":7,"n_cols":13,"rows_kept":7,"merged":[[1,0,1,12],[2,0,2,5]]}
[]
["Πληροφορίες υπαλλήλου"]
["[Επωνυμία εταιρείας]"]
["Κωδικός υπαλλήλου","Ονοματεπώνυμο υπαλλήλου","Ωρομίσθιο","Φορολογική κατάσταση","Κρατικό επίδομα","Κρατικός φόρος","Κρατικός φόρος εισοδήματος (Με βάση το κρατικό επίδομα)","Εισφορές κοινωνικής ασφάλισης","Φόρος υπηρεσιών ιατρικής περίθαλψης","Σύνολο παρακρατούμενων φόρων","Κρατήσεις ασφάλισης","Άλλες τακτικές κρατήσεις","Σύνολο τακτικών κρατήσεων (Μη συμπεριλαμβανομένων των φόρων)"]
[1,"Γιάννης Νικολάου",{"v":10,"d":"10.00 €"},1,4,{"v":0.023,"d":"2.30%"},{"v":0.28,"d":"28.00%"},{"v":0.063,"d":"6.30%"},{"v":0.0145,"d":"1.45%"},{"$f":"Table1[Κρατικός φόρος]+Table1[Κρατικός φόρος εισοδήματος (Με βάση το κρατικό επίδομα)]+Table1[Εισφορές κοινωνικής ασφάλισης]+Table1[Φόρος υπηρεσιών ιατρικής περίθαλψης]","v":{"v":0.38050000000000006,"d":"38.05%"}},{"v":20,"d":"20.00 €"},{"v":40,"d":"40.00 €"},{"$f":"Table1[Κρατήσεις ασφάλισης]+Table1[Άλλες τακτικές κρατήσεις]","v":{"v":60,"d":"60.00 €"}}]
[2,"Ελένη Γεωργίου",{"v":13,"d":"13.00 €"},1,4,{"v":0.023,"d":"2.30%"},{"v":0.28,"d":"28.00%"},{"v":0.063,"d":"6.30%"},{"v":0.0145,"d":"1.45%"},{"$f":"Table1[Κρατικός φόρος]+Table1[Κρατικός φόρος εισοδήματος (Με βάση το κρατικό επίδομα)]+Table1[Εισφορές κοινωνικής ασφάλισης]+Table1[Φόρος υπηρεσιών ιατρικής περίθαλψης]","v":{"v":0.38050000000000006,"d":"38.05%"}},{"v":20,"d":"20.00 €"},{"v":52,"d":"52.00 €"},{"$f":"Table1[Κρατήσεις ασφάλισης]+Table1[Άλλες τακτικές κρατήσεις]","v":{"v":72,"d":"72.00 €"}}]
[3,"Μαρία Παπαδοπούλου",{"v":10,"d":"10.00 €"},1,4,{"v":0.023,"d":"2.30%"},{"v":0.28,"d":"28.00%"},{"v":0.063,"d":"6.30%"},{"v":0.0145,"d":"1.45%"},{"$f":"Table1[Κρατικός φόρος]+Table1[Κρατικός φόρος εισοδήματος (Με βάση το κρατικό επίδομα)]+Table1[Εισφορές κοινωνικής ασφάλισης]+Table1[Φόρος υπηρεσιών ιατρικής περίθαλψης]","v":{"v":0.38050000000000006,"d":"38.05%"}},{"v":20,"d":"20.00 €"},{"v":0,"d":"0.00 €"},{"$f":"Table1[Κρατήσεις ασφάλισης]+Table1[Άλλες τακτικές κρατήσεις]","v":{"v":20,"d":"20.00 €"}}]

{"sheet":"Υπολογισμός μισθοδοσίας","index":1,"n_rows":7,"n_cols":11,"rows_kept":7,"merged":[[0,0,1,8],[2,0,2,5]]}
["Payroll calculator"]
[{"$nulls":9},"Λήξη περιόδου:","2007-01-31"]
[{"$f":"'Πληροφορίες υπαλλήλου'!$A$3","v":"[Επωνυμία εταιρείας]"}]
["Κωδικός υπαλλήλου","Ονοματεπώνυμο υπαλλήλου","Τακτικές ώρες εργασίας","Ώρες αδείας","Ώρες ασθενείας","Υπερωρίες","Χρέωση υπερωριών","Μεικτές αποδοχές","Φόροι και κρατήσεις","Άλλες κρατήσεις","Καθαρές αποδοχές"]
[1,{"$f":"VLOOKUP(A5,Table1[],2,FALSE)","v":"Γιάννης Νικολάου"},{"v":50,"d":"50.00"},{"v":5,"d":"5.00"},{"v":1,"d":"1.00"},null,null,{"$f":"(VLOOKUP(A5,Table1[],3,FALSE)*(Table2[Τακτικές ώρες εργασίας]+Table2[Ώρες αδείας]+Table2[Ώρες ασθενείας])+Table2[Υπερωρίες]*Table2[Χρέωση υπερωριών])","v":{"v":560,"d":"560.00 €"}},{"$f":"VLOOKUP(A5,Table1[],10,FALSE)*Table2[Μεικτές αποδοχές]+Table1[Σύνολο τακτικών κρατήσεων (Μη συμπεριλαμβανομένων των φόρων)]","v":{"v":273.08000000000004,"d":"273.08 €"}},{"v":20,"d":"20.00 €"},{"$f":"Table2[Μεικτές αποδοχές]-Table2[Φόροι και κρατήσεις]-Table2[Άλλες κρατήσεις]","v":{"v":266.91999999999996,"d":"266.92 €"}}]
[2,{"$f":"VLOOKUP(A6,Table1[],2,FALSE)","v":"Ελένη Γεωργίου"},{"v":40,"d":"40.00"},{"v":0,"d":"0.00"},{"v":0,"d":"0.00"},null,null,{"$f":"(VLOOKUP(A6,Table1[],3,FALSE)*(Table2[Τακτικές ώρες εργασίας]+Table2[Ώρες αδείας]+Table2[Ώρες ασθενείας])+Table2[Υπερωρίες]*Table2[Χρέωση υπερωριών])","v":{"v":520,"d":"520.00 €"}},{"$f":"VLOOKUP(A6,Table1[],10,FALSE)*Table2[Μεικτές αποδοχές]+Table1[Σύνολο τακτικών κρατήσεων (Μη συμπεριλαμβανομένων των φόρων)]","v":{"v":269.86,"d":"269.86 €"}},{"v":52,"d":"52.00 €"},{"$f":"Table2[Μεικτές αποδοχές]-Table2[Φόροι και κρατήσεις]-Table2[Άλλες κρατήσεις]","v":{"v":198.14,"d":"198.14 €"}}]
[3,{"$f":"VLOOKUP(A7,Table1[],2,FALSE)","v":"Μαρία Παπαδοπούλου"},{"v":52,"d":"52.00"},{"v":0,"d":"0.00"},{"v":0,"d":"0.00"},{"v":2,"d":"2.00"},{"v":20,"d":"20.00 €"},{"$f":"(VLOOKUP(A7,Table1[],3,FALSE)*(Table2[Τακτικές ώρες εργασίας]+Table2[Ώρες αδείας]+Table2[Ώρες ασθενείας])+Table2[Υπερωρίες]*Table2[Χρέωση υπερωριών])","v":{"v":560,"d":"560.00 €"}},{"$f":"VLOOKUP(A7,Table1[],10,FALSE)*Table2[Μεικτές αποδοχές]+Table1[Σύνολο τακτικών κρατήσεων (Μη συμπεριλαμβανομένων των φόρων)]","v":{"v":233.08000000000004,"d":"233.08 €"}},{"v":20,"d":"20.00 €"},{"$f":"Table2[Μεικτές αποδοχές]-Table2[Φόροι και κρατήσεις]-Table2[Άλλες κρατήσεις]","v":{"v":306.91999999999996,"d":"306.92 €"}}]

{"sheet":"Ατομικές αποδείξεις μισθοδοσίας","index":2,"n_rows":48,"n_cols":8,"rows_kept":48,"merged":[[1,2,1,7],[13,2,13,7],[25,2,25,7],[38,2,38,7]]}
[]
[null,null,{"$f":"('Πληροφορίες υπαλλήλου'!$A$3)","v":"[Επωνυμία εταιρείας]"}]
[null,null,"Περίοδος:",{"$f":"'Υπολογισμός μισθοδοσίας'!$K$2","v":"2007-01-31"},"Ονοματεπώνυμο υπαλλήλου",{"$f":"IFERROR(VLOOKUP(H3,Table1[],2),\"\")","v":"Γιάννης Νικολάου"},"Κωδικός υπαλλήλου",1]
[]
[null,null,"Φορολογική κατάσταση",{"$f":"IFERROR(VLOOKUP(H3,Table1[],4),\"\")","v":1},"Κρατικό επίδομα",{"$f":"IFERROR(VLOOKUP(H3,Table1[],5,FALSE),\"\")","v":4},"Ώρες εργασίας",{"$f":"IFERROR(VLOOKUP(H3,Table2[],3,FALSE),\"\")","v":50}]
[null,null,"Ωριαία αμοιβή",{"$f":"IFERROR(VLOOKUP(H3,Table1[],3,FALSE),\"\")","v":{"v":10,"d":"10.00 €"}},"Χρέωση υπερωριών",{"$f":"IFERROR(VLOOKUP(H3,Table2[],7,FALSE),\"\")","v":0},"Ώρες ασθενείας",{"$f":"IFERROR(VLOOKUP(H3,Table2[],5,FALSE),\"\")","v":1}]
[null,null,"Social Security Tax",{"$f":"IFERROR(IFERROR(VLOOKUP(H3,Table1[],8,FALSE),\"\")*H9,\"\")","v":{"v":35.28,"d":"35.28 €"}},"Κρατικός φόρος εισοδήματος",{"$f":"IFERROR(IFERROR(VLOOKUP(H3,Table1[],7,FALSE),\"\")*H9,\"\")","v":{"v":156.8,"d":"156.80 €"}},"Ώρες αδείας",{"$f":"IFERROR(VLOOKUP(H3,Table2[],4,FALSE),\"\")","v":5}]
[null,null,"Φόρος υπηρεσιών ιατρικής περίθαλψης",{"$f":"IFERROR(IFERROR(VLOOKUP(H3,Table1[],9,FALSE),\"\")*H9,\"\")","v":{"v":8.120000000000001,"d":"8.12 €"}},"Κρατικός φόρος",{"$f":"IFERROR(IFERROR(VLOOKUP(H3,Table1[],6,FALSE),\"\")*H9,\"\")","v":{"v":12.879999999999999,"d":"12.88 €"}},"Υπερωρίες",{"$f":"IFERROR(VLOOKUP(H3,Table2[],6,FALSE),\"\")","v":0}]
[null,null,"Insurance Deduction",{"$f":"IFERROR(VLOOKUP(H3,Table1[],11,FALSE),\"\")","v":{"v":20,"d":"20.00 €"}},"Άλλες τακτικές κρατήσεις",{"$f":"IFERROR(VLOOKUP(H3,Table1[],12,FALSE),\"\")","v":{"v":40,"d":"40.00 €"}},"Μεικτές αποδοχές",{"$f":"IFERROR(VLOOKUP(H3,Table2[],8,FALSE),\"\")","v":{"v":560,"d":"560.00 €"}}]
[null,null,"Συνολικοί φόροι και τακτικές κρατήσεις",{"$f":"IFERROR(SUM(F7:F9)+SUM(D7:D9),\"\")","v":{"v":273.08000000000004,"d":"273.08 €"}},"Άλλες κρατήσεις",{"$f":"IFERROR(VLOOKUP(H3,Table2[],10,FALSE),\"\")","v":{"v":20,"d":"20.00 €"}},"Συνολικοί φόροι και κρατήσεις",{"$f":"IFERROR(IFERROR(VLOOKUP(H3,Table2[],9,FALSE),\"\")+F10,\"\")","v":{"v":293.08000000000004,"d":"293.08 €"}}]
[{"$nulls":6},"Καθαρές αποδοχές",{"$f":"IFERROR(VLOOKUP(H3,Table2[],11,FALSE),\"\")","v":{"v":266.91999999999996,"d":"266.92 €"}}]
[]
[]
[null,null,{"$f":"('Πληροφορίες υπαλλήλου'!$A$3)","v":"[Επωνυμία εταιρείας]"}]
[null,null,"Περίοδος:",{"$f":"'Υπολογισμός μισθοδοσίας'!$K$2","v":"2007-01-31"},"Ονοματεπώνυμο υπαλλήλου",{"$f":"IFERROR(VLOOKUP(H15,Table1[],2),\"\")","v":"Ελένη Γεωργίου"},"Κωδικός υπαλλήλου",2]
[]
[null,null,"Φορολογική κατάσταση",{"$f":"IFERROR(VLOOKUP(H15,Table1[],4),\"\")","v":1},"Κρατικό επίδομα",{"$f":"IFERROR(VLOOKUP(H15,Table1[],5,FALSE),\"\")","v":4},"Ώρες εργασίας",{"$f":"IFERROR(VLOOKUP(H15,Table2[],3,FALSE),\"\")","v":40}]
[null,null,"Ωριαία αμοιβή",{"$f":"IFERROR(VLOOKUP(H15,Table1[],3,FALSE),\"\")","v":{"v":13,"d":"13.00 €"}},"Χρέωση υπερωριών",{"$f":"IFERROR(VLOOKUP(H15,Table2[],7,FALSE),\"\")","v":0},"Ώρες ασθενείας",{"$f":"IFERROR(VLOOKUP(H15,Table2[],5,FALSE),\"\")","v":0}]
[null,null,"Social Security Tax",{"$f":"IFERROR(IFERROR(VLOOKUP(H15,Table1[],8,FALSE),\"\")*H21,\"\")","v":{"v":32.76,"d":"32.76 €"}},"Κρατικός φόρος εισοδήματος",{"$f":"IFERROR(IFERROR(VLOOKUP(H15,Table1[],7,FALSE),\"\")*H21,\"\")","v":{"v":145.60000000000002,"d":"145.60 €"}},"Ώρες αδείας",{"$f":"IFERROR(VLOOKUP(H15,Table2[],4,FALSE),\"\")","v":0}]
[null,null,"Φόρος υπηρεσιών ιατρικής περίθαλψης",{"$f":"IFERROR(IFERROR(VLOOKUP(H15,Table1[],9,FALSE),\"\")*H21,\"\")","v":{"v":7.54,"d":"7.54 €"}},"Κρατικός φόρος",{"$f":"IFERROR(IFERROR(VLOOKUP(H15,Table1[],6,FALSE),\"\")*H21,\"\")","v":{"v":11.959999999999999,"d":"11.96 €"}},"Υπερωρίες",{"$f":"IFERROR(VLOOKUP(H15,Table2[],6,FALSE),\"\")","v":0}]
[null,null,"Insurance Deduction",{"$f":"IFERROR(VLOOKUP(H15,Table1[],11,FALSE),\"\")","v":{"v":20,"d":"20.00 €"}},"Άλλες τακτικές κρατήσεις",{"$f":"IFERROR(VLOOKUP(H15,Table1[],12,FALSE),\"\")","v":{"v":52,"d":"52.00 €"}},"Μεικτές αποδοχές",{"$f":"IFERROR(VLOOKUP(H15,Table2[],8,FALSE),\"\")","v":{"v":520,"d":"520.00 €"}}]
[null,null,"Συνολικοί φόροι και τακτικές κρατήσεις",{"$f":"IFERROR(SUM(F19:F21)+SUM(D19:D21),\"\")","v":{"v":269.86,"d":"269.86 €"}},"Άλλες κρατήσεις",{"$f":"IFERROR(VLOOKUP(H15,Table2[],10,FALSE),\"\")","v":{"v":52,"d":"52.00 €"}},"Συνολικοί φόροι και κρατήσεις",{"$f":"IFERROR(IFERROR(VLOOKUP(H15,Table2[],9,FALSE),\"\")+F22,\"\")","v":{"v":321.86,"d":"321.86 €"}}]
[{"$nulls":6},"Καθαρές αποδοχές",{"$f":"IFERROR(VLOOKUP(H15,Table2[],11,FALSE),\"\")","v":{"v":198.14,"d":"198.14 €"}}]
[]
[]
[null,null,{"$f":"('Πληροφορίες υπαλλήλου'!$A$3)","v":"[Επωνυμία εταιρείας]"}]
[null,null,"Περίοδος:",{"$f":"'Υπολογισμός μισθοδοσίας'!$K$2","v":"2007-01-31"},"Ονοματεπώνυμο υπαλλήλου",{"$f":"IFERROR(VLOOKUP(H27,Table1[],2),\"\")","v":"Μαρία Παπαδοπούλου"},"Κωδικός υπαλλήλου",3]
[]
[null,null,"Φορολογική κατάσταση",{"$f":"IFERROR(VLOOKUP(H27,Table1[],4),\"\")","v":1},"Κρατικό επίδομα",{"$f":"IFERROR(VLOOKUP(H27,Table1[],5,FALSE),\"\")","v":4},"Ώρες εργασίας",{"$f":"IFERROR(VLOOKUP(H27,Table2[],3,FALSE),\"\")","v":52}]
[null,null,"Ωριαία αμοιβή",{"$f":"IFERROR(VLOOKUP(H27,Table1[],3,FALSE),\"\")","v":{"v":10,"d":"10.00 €"}},"Χρέωση υπερωριών",{"$f":"IFERROR(VLOOKUP(H27,Table2[],7,FALSE),\"\")","v":{"v":20,"d":"20.00 €"}},"Ώρες ασθενείας",{"$f":"IFERROR(VLOOKUP(H27,Table2[],5,FALSE),\"\")","v":0}]
[null,null,"Social Security Tax",{"$f":"IFERROR(IFERROR(VLOOKUP(H27,Table1[],8,FALSE),\"\")*H33,\"\")","v":{"v":35.28,"d":"35.28 €"}},"Κρατικός φόρος εισοδήματος",{"$f":"IFERROR(IFERROR(VLOOKUP(H27,Table1[],7,FALSE),\"\")*H33,\"\")","v":{"v":156.8,"d":"156.80 €"}},"Ώρες αδείας",{"$f":"IFERROR(VLOOKUP(H27,Table2[],4,FALSE),\"\")","v":0}]
[null,null,"Φόρος υπηρεσιών ιατρικής περίθαλψης",{"$f":"IFERROR(IFERROR(VLOOKUP(H27,Table1[],9,FALSE),\"\")*H33,\"\")","v":{"v":8.120000000000001,"d":"8.12 €"}},"Κρατικός φόρος",{"$f":"IFERROR(IFERROR(VLOOKUP(H27,Table1[],6,FALSE),\"\")*H33,\"\")","v":{"v":12.879999999999999,"d":"12.88 €"}},"Υπερωρίες",{"$f":"IFERROR(VLOOKUP(H27,Table2[],6,FALSE),\"\")","v":2}]
[null,null,"Insurance Deduction",{"$f":"IFERROR(VLOOKUP(H27,Table1[],11,FALSE),\"\")","v":{"v":20,"d":"20.00 €"}},"Άλλες τακτικές κρατήσεις",{"$f":"IFERROR(VLOOKUP(H27,Table1[],12,FALSE),\"\")","v":0},"Μεικτές αποδοχές",{"$f":"IFERROR(VLOOKUP(H27,Table2[],8,FALSE),\"\")","v":{"v":560,"d":"560.00 €"}}]
[null,null,"Συνολικοί φόροι και τακτικές κρατήσεις",{"$f":"IFERROR(SUM(F31:F33)+SUM(D31:D33),\"\")","v":{"v":233.08,"d":"233.08 €"}},"Άλλες κρατήσεις",{"$f":"IFERROR(VLOOKUP(H27,Table2[],10,FALSE),\"\")","v":{"v":20,"d":"20.00 €"}},"Συνολικοί φόροι και κρατήσεις",{"$f":"IFERROR(IFERROR(VLOOKUP(H27,Table2[],9,FALSE),\"\")+F34,\"\")","v":{"v":253.08000000000004,"d":"253.08 €"}}]
[{"$nulls":6},"Καθαρές αποδοχές",{"$f":"IFERROR(VLOOKUP(H27,Table2[],11,FALSE),\"\")","v":{"v":306.91999999999996,"d":"306.92 €"}}]
[]
[]
[]
[null,null,{"$f":"('Πληροφορίες υπαλλήλου'!$A$3)","v":"[Επωνυμία εταιρείας]"}]
[null,null,"Περίοδος:",{"$f":"'Υπολογισμός μισθοδοσίας'!$K$2","v":"2007-01-31"},"Ονοματεπώνυμο υπαλλήλου",{"$f":"IFERROR(VLOOKUP(H40,Table1[],2),\"\")","v":""},"Κωδικός υπαλλήλου"]
[]
[null,null,"Φορολογική κατάσταση",{"$f":"IFERROR(VLOOKUP(H40,Table1[],4),\"\")","v":""},"Κρατικό επίδομα",{"$f":"IFERROR(VLOOKUP(H40,Table1[],5,FALSE),\"\")","v":""},"Ώρες εργασίας",{"$f":"IFERROR(VLOOKUP(H40,Table2[],3,FALSE),\"\")","v":""}]
[null,null,"Ωριαία αμοιβή",{"$f":"IFERROR(VLOOKUP(H40,Table1[],3,FALSE),\"\")","v":""},"Χρέωση υπερωριών",{"$f":"IFERROR(VLOOKUP(H40,Table2[],7,FALSE),\"\")","v":""},"Ώρες ασθενείας",{"$f":"IFERROR(VLOOKUP(H40,Table2[],5,FALSE),\"\")","v":""}]
[null,null,"Social Security Tax",{"$f":"IFERROR(IFERROR(VLOOKUP(H40,Table1[],8,FALSE),\"\")*H46,\"\")","v":""},"Κρατικός φόρος εισοδήματος",{"$f":"IFERROR(IFERROR(VLOOKUP(H40,Table1[],7,FALSE),\"\")*H46,\"\")","v":""},"Ώρες αδείας",{"$f":"IFERROR(VLOOKUP(H40,Table2[],4,FALSE),\"\")","v":""}]
[null,null,"Φόρος υπηρεσιών ιατρικής περίθαλψης",{"$f":"IFERROR(IFERROR(VLOOKUP(H40,Table1[],9,FALSE),\"\")*H46,\"\")","v":""},"Κρατικός φόρος",{"$f":"IFERROR(IFERROR(VLOOKUP(H40,Table1[],6,FALSE),\"\")*H46,\"\")","v":""},"Υπερωρίες",{"$f":"IFERROR(VLOOKUP(H40,Table2[],6,FALSE),\"\")","v":""}]
[null,null,"Insurance Deduction",{"$f":"IFERROR(VLOOKUP(H40,Table1[],11,FALSE),\"\")","v":""},"Άλλες τακτικές κρατήσεις",{"$f":"IFERROR(VLOOKUP(H40,Table1[],12,FALSE),\"\")","v":""},"Μεικτές αποδοχές",{"$f":"IFERROR(VLOOKUP(H40,Table2[],8,FALSE),\"\")","v":""}]
[null,null,"Συνολικοί φόροι και τακτικές κρατήσεις",{"$f":"IFERROR(SUM(F44:F46)+SUM(D44:D46),\"\")","v":0},"Άλλες κρατήσεις",{"$f":"IFERROR(VLOOKUP(H40,Table2[],10,FALSE),\"\")","v":""},"Συνολικοί φόροι και κρατήσεις",{"$f":"IFERROR(IFERROR(VLOOKUP(H40,Table2[],9,FALSE),\"\")+F47,\"\")","v":""}]
[{"$nulls":6},"Καθαρές αποδοχές",{"$f":"IFERROR(VLOOKUP(H40,Table2[],11,FALSE),\"\")","v":""}]